bitfinex-derivatives/quotes_BTCF0:USTF0_20260127
["timestamp","ask_amount","ask_price","bid_price","bid_amount"]
[1769553807466,0.00258838,89403.0,89392.0,0.00998112]
[1769553808553,0.00258838,89403.0,89393.0,0.00559331]
[1769553808755,0.00258838,89403.0,89393.0,0.01557443]
[1769553809265,0.01175245,89403.0,89393.0,0.00783063]
[1769553809556,0.00916407,89402.0,89393.0,0.00783063]
[1769553809752,0.00258838,89401.0,89393.0,0.00783063]
[1769553810561,0.01175245,89401.0,89393.0,0.00783063]
[1769553813260,0.00916407,89400.0,89393.0,0.00783063]
[1769553813562,0.011198,89408.0,89390.0,0.11196]
[1769553813563,0.00916407,89398.0,89390.0,0.11196]
[1769553813758,0.00258838,89397.0,89390.0,0.11196]
[1769553814357,0.00258838,89397.0,89390.0,0.0112]
[1769553815170,0.01175245,89397.0,89392.0,0.0112]
[1769553815463,0.00916407,89428.0,89396.0,0.00998112]
[1769553815765,0.00916407,89419.0,89400.0,0.011199]
[1769553815962,0.00916407,89417.0,89401.0,0.002588]
[1769553816166,0.00916407,89415.0,89401.0,0.002588]
[1769553816353,0.0008632,89414.0,89401.0,0.002588]
[1769553816554,0.0008632,89414.0,89401.0,0.013787]
[1769553817657,0.0008632,89414.0,89401.0,0.002588]
[1769553817959,0.0008632,89414.0,89404.0,0.011199]
[1769553818159,0.0008632,89414.0,89405.0,0.002588]
[1769553819365,0.10076,89416.0,89405.0,0.002588]
[1769553819665,0.1016232,89416.0,89405.0,0.002588]
[1769553819861,0.00916407,89415.0,89405.0,0.002588]
[1769553820061,0.01002727,89415.0,89405.0,0.002588]
[1769553824568,0.10076,89418.0,89407.0,0.00998112]
[1769553824769,0.1016232,89418.0,89408.0,0.002588]
[1769553827472,0.10076,89418.0,89408.0,0.002588]
[1769553827672,0.10076,89418.0,89409.0,0.00998112]
[1769553827873,0.10992407,89429.0,89411.0,0.00998112]
[1769553828173,0.01002727,89428.0,89412.0,0.01256912]
[1769553828366,0.01002727,89428.0,89412.0,0.002588]
[1769553828674,0.00916407,89423.0,89412.0,0.002588]
[1769553828874,0.01002727,89422.0,89412.0,0.002588]
[1769553830679,0.0008632,89422.0,89413.0,0.00998112]
[1769553830877,0.02036007,89427.0,89414.0,0.002588]
[1769553831174,0.01002727,89426.0,89414.0,0.002588]
[1769553834274,0.01002727,89426.0,89417.0,0.011197]
[1769553834474,0.01002727,89426.0,89414.0,0.002588]
[1769553834475,0.01002727,89426.0,89418.0,0.002588]
[1769553834669,0.01002727,89426.0,89410.0,0.00978895]
[1769553834976,0.10076,89429.0,89418.0,0.00978895]
[1769553835169,0.10076,89429.0,89409.0,0.10076]
[1769553835170,0.00782713,89433.0,89422.0,0.00978895]
[1769553835575,0.00971099,89441.0,89426.0,0.00978895]
[1769553835778,0.11047099,89445.0,89431.0,0.00978895]
[1769553835969,0.11305937,89445.0,89432.0,0.00978895]
[1769553836275,0.10334838,89445.0,89432.0,0.00978895]
[1769553836465,0.10334838,89445.0,89433.0,0.011195]
[1769553836878,0.10334838,89445.0,89432.0,0.00978895]
[1769553837576,0.10334838,89445.0,89432.0,0.02098395]
[1769553837781,0.10334838,89445.0,89432.0,0.00978895]
[1769553838370,0.10076,89445.0,89432.0,0.00978895]
[1769553838777,0.10076,89445.0,89433.0,0.011195]
[1769553841282,0.10076,89445.0,89436.0,0.00978895]
[1769553841778,0.10076,89445.0,89437.0,0.011195]
[1769553842080,0.10076,89445.0,89435.0,0.011195]
[1769553842277,0.10076,89445.0,89435.0,0.02098395]
[1769553842781,0.10076,89445.0,89436.0,0.00978895]
[1769553845267,0.00971099,89443.0,89432.0,0.011195]
[1769553845680,0.00971099,89443.0,89432.0,0.02098395]
[1769553845875,0.00971099,89449.0,89433.0,0.00978895]
[1769553846194,0.00971099,89448.0,89432.0,0.02098395]
[1769553846481,0.01229937,89447.0,89432.0,0.02098395]
[1769553846871,0.00971099,89446.0,89432.0,0.02098395]
[1769553847686,0.01229937,89446.0,89432.0,0.02098395]
[1769553848881,0.01229937,89446.0,89433.0,0.00978895]
[1769553849691,0.01229937,89446.0,89434.0,0.011195]
[1769553851679,0.01229937,89446.0,89435.0,0.011195]
[1769553852075,0.00258838,89446.0,89435.0,0.02098395]
[1769553852273,0.00258838,89446.0,89436.0,0.00978895]
[1769553852776,0.00971099,89445.0,89435.0,0.011195]
[1769553852971,0.00258838,89444.0,89435.0,0.011195]
[1769553853178,0.00258838,89444.0,89435.0,0.02098395]
[1769553853787,0.00971099,89456.0,89436.0,0.00978895]
[1769553854085,0.00971099,89455.0,89435.0,0.011195]
[1769553854286,0.00971099,89453.0,89435.0,0.011195]
[1769553854487,0.00971099,89451.0,89435.0,0.011195]
[1769553854683,0.00971099,89449.0,89435.0,0.011195]
[1769553854881,0.00971099,89447.0,89435.0,0.011195]
[1769553855081,0.3464,89457.0,89435.0,0.011195]
[1769553855082,0.00971099,89445.0,89435.0,0.011195]
[1769553855382,0.00971099,89444.0,89429.0,0.10076]
[1769553855588,0.00971099,89442.0,89431.0,0.011195]
[1769553855786,0.00971099,89440.0,89431.0,0.011195]
[1769553855973,0.01229937,89439.0,89431.0,0.011195]
[1769553856180,0.011196,89428.0,89423.0,0.00978895]
[1769553856387,0.00258838,89428.0,89419.0,0.10076]
[1769553856586,0.01229937,89428.0,89419.0,0.10076]
[1769553856785,0.00971099,89427.0,89419.0,0.10076]
[1769553856987,0.02349537,89426.0,89419.0,0.10076]
[1769553857183,0.011196,89424.0,89419.0,0.10076]
[1769553857387,0.011196,89422.0,89412.0,0.00978895]
[1769553857591,0.00258838,89421.0,89410.0,0.10076]
[1769553857789,0.00258838,89421.0,89411.0,0.00978895]
[1769553858687,0.00971099,89420.0,89410.0,0.10076]
[1769553858889,0.00258838,89419.0,89410.0,0.10076]
[1769553859281,0.00258838,89419.0,89407.0,0.08867288]
[1769553859487,0.00258838,89419.0,89408.0,0.00978895]
[1769553860587,0.00258838,89419.0,89407.0,0.011198]
[1769553860989,0.00971099,89417.0,89406.0,0.08867288]
[1769553861189,0.00971099,89415.0,89405.0,0.08867288]
[1769553861386,0.00258838,89414.0,89406.0,0.24029356]
[1769553861588,0.00971099,89413.0,89406.0,0.08867288]
[1769553861785,0.00971099,89411.0,89406.0,0.08867288]
[1769553861994,0.00258838,89412.0,89406.0,0.08867288]
[1769553863709,0.011193,89411.0,89406.0,0.08867288]
[1769553863996,0.00258838,89410.0,89406.0,0.08867288]
[1769553864593,0.00974094,89409.0,89400.0,0.13310139]
[1769553864796,0.00974094,89407.0,89399.0,0.13310139]
[1769553864989,0.00258838,89406.0,89399.0,0.13310139]
[1769553865401,0.00258838,89406.0,89398.0,0.10076]
[1769553865595,0.00258838,89406.0,89398.0,0.13310139]
[1769553866392,0.02236507,89406.0,89398.0,0.13310139]
[1769553866589,0.00858369,89405.0,89398.0,0.13310139]
[1769553866800,0.02498038,89406.0,89393.0,0.17387098]
[1769553866801,0.00258838,89404.0,89393.0,0.17387098]
[1769553866994,0.011199,89403.0,89393.0,0.17387098]
[1769553867297,0.00086282,89403.0,89393.0,0.17645936]
[1769553867603,0.01206182,89403.0,89393.0,0.01041901]
[1769553869195,0.01206182,89403.0,89393.0,0.00783063]
[1769553869400,0.008428,89401.0,89393.0,0.00783063]
[1769553869601,0.00086282,89400.0,89393.0,0.00783063]
[1769553870802,0.011193,89399.0,89393.0,0.00783063]
[1769553871099,0.01205582,89399.0,89393.0,0.00783063]
[1769553873602,0.01205582,89399.0,89393.0,0.01041901]
[1769553875407,0.02325482,89399.0,89393.0,0.01041901]
[1769553876307,0.0112,89397.0,89393.0,0.01041901]
[1769553877010,0.0112,89397.0,89394.0,0.14301446]
[1769553877202,0.008428,89405.0,89395.0,4.6e-07]
[1769553877506,0.008428,89405.0,89393.0,0.00783063]
[1769553878206,0.008428,89405.0,89394.0,0.00258838]
[1769553878409,0.011199,89398.0,89394.0,0.00258838]
[1769553878600,0.011199,89398.0,89393.0,0.00783063]
[1769553879114,0.0112,89395.0,89387.0,0.26680035]
[1769553879409,0.0112,89395.0,89387.0,0.26938873]
[1769553879615,0.0112,89395.0,89387.0,0.27855003]
[1769553880306,0.0112,89395.0,89388.0,0.0091613]
[1769553881415,0.0112,89395.0,89388.0,0.17779003]
[1769553885511,0.0112,89394.0,89389.0,0.16604035]
[1769553885704,0.0112,89394.0,89389.0,0.16862873]
[1769553886013,0.011199,89404.0,89389.0,0.16862873]
[1769553886014,0.00844844,89403.0,89390.0,0.0091613]
[1769553886221,0.0112,89395.0,89390.0,0.0091613]
[1769553886714,0.011199,89404.0,89391.0,0.0091613]
[1769553887216,0.00974094,89404.0,89391.0,0.0091613]
[1769553887416,0.00974094,89404.0,89391.0,0.01174968]
[1769553887918,0.011199,89399.0,89391.0,0.01174968]
[1769553889018,0.011199,89399.0,89391.0,0.00258838]
[1769553890325,0.0112,89398.0,89391.0,0.00258838]
[1769553890620,0.011199,89399.0,89391.0,0.00258838]
[1769553891817,0.011199,89399.0,89387.0,0.17724135]
[1769553892020,0.00974094,89398.0,89388.0,0.00258838]
[1769553892321,0.011199,89399.0,89388.0,0.00258838]
[1769553892522,0.011199,89399.0,89388.0,0.01174968]
[1769553892724,0.11050094,89408.0,89389.0,0.0091613]
[1769553892921,0.11050094,89408.0,89388.0,0.01378938]
[1769553892922,0.11050094,89408.0,89391.0,0.0091613]
[1769553893125,0.00974094,89407.0,89392.0,0.01174968]
[1769553893324,0.00974094,89400.0,89377.0,0.01103634]
[1769553893519,0.0112,89391.0,89384.0,0.00258838]
[1769553895526,0.00974094,89397.0,89385.0,0.00960059]
[1769553895728,0.00974094,89397.0,89386.0,0.00258838]
[1769553896422,0.0112,89396.0,89386.0,0.00258838]
[1769553896625,0.00937051,89395.0,89379.0,0.1008]
[1769553896827,0.111999,89401.0,89379.0,0.1008]
[1769553896828,0.011201,89386.0,89379.0,0.1008]
[1769553897023,0.00937051,89389.0,89379.0,0.1008]
[1769553897222,0.00937051,89389.0,89375.0,0.00960059]
[1769553897520,0.011202,89379.0,89375.0,0.00960059]
[1769553897733,0.00937051,89385.0,89371.0,0.1008]
[1769553897922,0.00937051,89385.0,89371.0,0.10338838]
[1769553898231,0.11403787,89390.0,89372.0,0.011203]
[1769553898525,0.011201,89386.0,89373.0,0.01379038]
[1769553898927,0.02057151,89389.0,89373.0,0.01379038]
[1769553899719,0.02057151,89389.0,89374.0,0.00960059]
[1769553899919,0.00937051,89389.0,89375.0,0.00258838]
[1769553900126,0.00937051,89378.0,89369.0,0.03294396]
[1769553900330,0.011202,89379.0,89369.0,0.03380678]
[1769553900533,0.00258838,89378.0,89369.0,0.03294396]
[1769553900727,0.00258838,89378.0,89369.0,0.03380678]
[1769553901032,0.00258838,89378.0,89369.0,0.01046341]
[1769553901722,0.00937051,89387.0,89373.0,0.00960059]
[1769553901928,0.00937051,89381.0,89369.0,0.03294396]
[1769553902230,0.00258838,89380.0,89369.0,0.03380678]
[1769553903026,0.00258838,89380.0,89369.0,0.04340737]
[1769553903635,0.00937051,89379.0,89369.0,0.03294396]
[1769553903931,0.00937051,89376.0,89361.0,0.011204]
[1769553904234,0.00937051,89374.0,89358.0,0.011204]
[1769553904422,0.00937051,89372.0,89359.0,0.00086282]
[1769553904622,0.00937051,89370.0,89359.0,0.00086282]
[1769553904933,0.00937051,89368.0,89359.0,0.00086282]
[1769553905126,0.01195889,89368.0,89360.0,0.011204]
[1769553905322,0.00258838,89368.0,89361.0,0.00086282]
[1769553905727,0.00937051,89373.0,89361.0,0.00086282]
[1769553905931,0.00258838,89372.0,89361.0,0.00086282]
[1769553907134,0.00258838,89372.0,89361.0,0.01206682]
[1769553907730,0.00258838,89372.0,89361.0,0.00086282]
[1769553909033,0.00937051,89371.0,89361.0,0.00086282]
[1769553909234,0.00937051,89369.0,89357.0,0.10089952]
[1769553909421,0.01195889,89368.0,89357.0,0.10089952]
[1769553909626,0.00937051,89367.0,89357.0,0.10089952]
[1769553909827,0.00258838,89366.0,89357.0,0.10089952]
[1769553910026,0.01195889,89366.0,89357.0,0.10089952]
[1769553910232,0.01195889,89366.0,89357.0,9.952e-05]
[1769553910437,0.00937051,89365.0,89357.0,9.952e-05]
[1769553910632,0.01195889,89364.0,89357.0,9.952e-05]
[1769553910931,0.00937051,89363.0,89357.0,9.952e-05]
[1769553911136,0.011204,89365.0,89357.0,9.952e-05]
[1769553911137,0.00937051,89361.0,89357.0,9.952e-05]
[1769553911338,0.00258838,89358.0,89357.0,9.952e-05]
[1769553912424,0.01195889,89358.0,89347.0,0.00960059]
[1769553912620,0.00937051,89357.0,89346.0,0.1008]
[1769553912824,0.00937051,89357.0,89348.0,0.011206]
[1769553912825,0.00258838,89356.0,89348.0,0.011206]
[1769553913334,0.00258838,89356.0,89348.0,0.00086282]
[1769553913533,9.424e-05,89355.0,89346.0,0.1008]
[1769553913735,0.00937051,89353.0,89343.0,0.13330187]
[1769553913936,0.00258838,89352.0,89341.0,0.13330187]
[1769553914137,0.00258838,89352.0,89341.0,0.13416469]
[1769553914334,0.00258838,89352.0,89341.0,0.00086282]
[1769553915737,0.00258838,89352.0,89341.0,0.01206982]
[1769553916136,0.00937051,89350.0,89338.0,0.13330187]
[1769553916338,0.00937051,89348.0,89337.0,0.13330187]
[1769553916638,0.00937051,89346.0,89335.0,0.112007]
[1769553916838,0.00258838,89345.0,89335.0,0.112007]
[1769553917939,0.00937051,89344.0,89335.0,0.112007]
[1769553918145,0.00258838,89343.0,89335.0,0.112007]
[1769553918544,0.00258838,89343.0,89335.0,0.1008]
[1769553919238,0.01195889,89343.0,89334.0,0.13330187]
[1769553919432,0.01195889,89343.0,89335.0,0.13330187]
[1769553920338,0.01195889,89343.0,89336.0,0.13330187]
[1769553920732,0.01195889,89343.0,89335.0,0.13330187]
[1769553920931,0.00258838,89343.0,89335.0,0.13330187]
[1769553921545,0.00258838,89343.0,89336.0,0.13330187]
[1769553923836,0.0121205,89343.0,89336.0,0.13330187]
[1769553924352,0.0121205,89343.0,89337.0,0.13330187]
[1769553924538,0.0121205,89343.0,89341.0,0.08901751]
[1769553924735,0.00258838,89343.0,89341.0,0.08901751]
[1769553925536,0.00258838,89343.0,89330.0,0.00960059]
[1769553925537,0.00919666,89342.0,89330.0,0.16662734]
[1769553925737,0.01187967,89341.0,89330.0,0.16662734]
[1769553925935,0.011207,89338.0,89331.0,0.00086282]
[1769553926139,0.011207,89336.0,89327.0,0.16662734]
[1769553926339,0.00258838,89335.0,89327.0,0.16749016]
[1769553926551,0.00258838,89335.0,89328.0,0.16662734]
[1769553926747,0.00258838,89335.0,89327.0,0.16749016]
[1769553927949,0.00258838,89335.0,89327.0,0.16662734]
[1769553929353,0.00258838,89335.0,89328.0,0.16662734]
[1769553929855,0.01178504,89335.0,89328.0,0.16662734]
[1769553930045,0.00258838,89335.0,89328.0,0.16662734]
[1769553930246,0.01379538,89335.0,89328.0,0.16662734]
[1769553930646,0.00258838,89335.0,89328.0,0.16662734]
[1769553931056,0.00258838,89335.0,89327.0,0.16662734]
[1769553931258,0.00258838,89335.0,89328.0,0.16662734]
[1769553931456,0.00258838,89335.0,89327.0,0.16662734]
[1769553932256,0.00258838,89335.0,89328.0,0.16662734]
[1769553932755,0.01379538,89335.0,89328.0,0.16662734]
[1769553934454,0.02299204,89335.0,89328.0,0.16662734]
[1769553935051,0.011208,89333.0,89328.0,0.16662734]
[1769553935265,0.00258838,89332.0,89328.0,0.16662734]
[1769553936451,0.00258838,89332.0,89325.0,0.16662734]
[1769553936762,0.011208,89326.0,89325.0,3.4e-07]
[1769553937059,0.00023187,89326.0,89317.0,0.0097281]
[1769553937359,0.011209,89325.0,89317.0,0.0097281]
[1769553938063,0.00023187,89326.0,89317.0,0.0097281]
[1769553940365,0.011209,89318.0,89313.0,5.3e-07]
[1769553940560,0.01121,89312.0,89304.0,0.27936509]
[1769553940762,0.00919666,89324.0,89305.0,0.00258838]
[1769553941559,0.01121,89316.0,89305.0,0.00258838]
[1769553942360,0.01121,89317.0,89306.0,0.0097281]
[1769553943261,0.011209,89318.0,89307.0,0.0097281]
[1769553943453,0.011209,89318.0,89308.0,0.0097281]
[1769553943859,0.011209,89321.0,89308.0,0.0097281]
[1769553944159,0.011209,89321.0,89309.0,0.0097281]
[1769553944360,0.10096187,89325.0,89311.0,0.0097281]
[1769553944567,0.10096187,89325.0,89313.0,0.0097281]
[1769553944747,0.10096187,89325.0,89314.0,0.0097281]
[1769553944950,0.011209,89323.0,89315.0,0.0097281]
[1769553945268,0.11217087,89325.0,89315.0,0.01231648]
[1769553945455,0.11217087,89325.0,89316.0,0.0097281]
[1769553945654,0.00919666,89335.0,89318.0,0.0097281]
[1769553945655,0.10088,89331.0,89318.0,0.0097281]
[1769553945962,0.10088,89331.0,89320.0,0.0097281]
[1769553946259,0.011208,89332.0,89321.0,0.0097281]
[1769553946455,0.011208,89333.0,89323.0,0.0097281]
[1769553947365,0.10088,89335.0,89324.0,0.00258838]
[1769553947661,0.011208,89333.0,89325.0,0.0097281]
[1769553947854,0.011207,89334.0,89327.0,0.0097281]
[1769553948052,0.011207,89334.0,89328.0,0.0097281]
[1769553948257,0.10088,89335.0,89328.0,0.0097281]
[1769553948455,0.10088,89344.0,89329.0,0.0097281]
[1769553948654,0.10088,89344.0,89330.0,0.0097281]
[1769553948861,0.10088,89344.0,89331.0,0.00814728]
[1769553949061,0.10088,89344.0,89331.0,0.01073566]
[1769553949358,0.011207,89337.0,89332.0,0.00821497]
[1769553949553,0.011207,89338.0,89333.0,0.00821497]
[1769553949754,0.011207,89336.0,89333.0,3.5e-07]
[1769553950065,0.00258838,89343.0,89324.0,0.10088]
[1769553950273,0.00258838,89343.0,89325.0,0.0006313]
[1769553950768,0.011207,89337.0,89325.0,0.0006313]
[1769553951264,0.01379538,89337.0,89325.0,0.0006313]
[1769553952761,0.00258838,89337.0,89325.0,0.0006313]
[1769553953365,0.011207,89337.0,89325.0,0.0006313]
[1769553953664,0.011206,89343.0,89325.0,0.0006313]
[1769553953864,0.011206,89343.0,89326.0,0.2952]
[1769553954066,0.011206,89343.0,89327.0,0.00258838]
[1769553954467,0.011206,89346.0,89330.0,0.011208]
[1769553954669,0.011206,89346.0,89331.0,0.00258838]
[1769553954859,0.01018982,89353.0,89331.0,0.00258838]
[1769553955054,0.011206,89345.0,89331.0,0.01379638]
[1769553955468,0.011206,89347.0,89331.0,0.01379638]
[1769553958473,0.011206,89347.0,89332.0,0.011208]
[1769553958672,0.011206,89347.0,89333.0,0.00258838]
[1769553958973,0.02160051,89351.0,89333.0,0.00258838]
[1769553959773,0.01047348,89350.0,89333.0,0.00258838]
[1769553961378,0.01047348,89350.0,89336.0,0.011207]
[1769553961674,0.01047348,89350.0,89336.0,0.01379538]
[1769553967681,0.02167848,89350.0,89336.0,0.00258838]
[1769553968385,0.011205,89350.0,89336.0,0.00258838]
[1769553968773,0.02170997,89350.0,89336.0,0.00258838]
[1769553968969,0.01050497,89350.0,89336.0,0.00258838]
[1769553971984,0.01050497,89350.0,89337.0,0.011207]
[1769553972282,0.01050497,89350.0,89338.0,0.00258838]
[1769553982874,0.01080606,89348.0,89338.0,0.00258838]
[1769553983689,0.00992951,89341.0,89335.0,0.07084]
[1769553983888,0.00992951,89341.0,89333.0,0.10084]
[1769553984086,0.01251789,89341.0,89333.0,0.10084]
[1769553984392,0.00258838,89341.0,89333.0,0.11017085]
[1769553985189,0.00258838,89341.0,89334.0,0.00933085]
[1769553985489,0.011206,89342.0,89333.0,0.10084]
[1769553985875,0.011206,89342.0,89333.0,0.11017085]
[1769553986383,0.0090614,89336.0,89329.0,0.13412838]
[1769553986583,0.011208,89331.0,89326.0,0.13412838]
[1769553986789,0.011208,89331.0,89321.0,0.00933085]
[1769553986790,0.00258838,89330.0,89321.0,0.00933085]
[1769553987277,0.0090614,89329.0,89319.0,0.16738976]
[1769553987481,0.00258838,89328.0,89318.0,0.10084]
[1769553988293,0.011208,89327.0,89318.0,0.10084]
[1769553988491,0.01379638,89327.0,89318.0,0.10084]
[1769553988894,0.011209,89326.0,89318.0,0.10084]
[1769553989093,0.01379738,89326.0,89318.0,0.10084]
[1769553989293,0.01379738,89326.0,89316.0,0.00933085]
[1769553990488,0.011209,89325.0,89316.0,0.00933085]
[1769553990680,0.00258838,89324.0,89316.0,0.00933085]
[1769553992090,0.011209,89323.0,89316.0,0.00933085]
[1769553992400,0.01379738,89323.0,89316.0,0.00933085]
[1769553992585,0.01379738,89323.0,89314.0,0.10084]
[1769553992786,0.01379738,89323.0,89314.0,0.11017085]
[1769553993086,0.01379738,89323.0,89315.0,0.00933085]
[1769553994394,0.00258838,89323.0,89314.0,0.10084]
[1769553994894,0.011209,89321.0,89314.0,0.10084]
[1769553995092,0.01379738,89321.0,89314.0,0.10084]
[1769553995686,0.011209,89319.0,89314.0,0.10084]
[1769553995886,0.01379738,89319.0,89314.0,0.09825162]
[1769553996096,0.02285878,89319.0,89314.0,0.09825162]
[1769553996294,0.0090614,89318.0,89314.0,0.08825162]
[1769553996493,0.0090614,89318.0,89306.0,0.00933085]
[1769553996494,0.00258838,89317.0,89306.0,0.00933085]
[1769553996797,0.01121,89312.0,89306.0,0.00933085]
[1769553996994,0.011211,89309.0,89306.0,8.5e-07]
[1769553997198,0.011211,89308.0,89304.0,1.4e-07]
[1769553997403,0.011211,89303.0,89294.0,0.01125494]
[1769553997592,0.011212,89301.0,89295.0,0.4958]
[1769553997790,0.00258838,89302.0,89296.0,0.395]
[1769553997991,0.011211,89307.0,89296.0,0.395]
[1769553998295,0.00269414,89306.0,89296.0,0.395]
[1769553999084,0.00269414,89306.0,89296.0,0.40433085]
[1769553999390,0.01390514,89306.0,89296.0,0.40433085]
[1769554000392,0.00269414,89306.0,89296.0,0.40433085]
[1769554000794,0.011211,89305.0,89296.0,0.00933085]
[1769554000996,0.00258838,89304.0,89296.0,0.40533085]
[1769554005398,0.00258838,89304.0,89297.0,0.00933085]
[1769554005605,0.00010576,89306.0,89297.0,0.00933085]
[1769554005797,0.00258838,89305.0,89297.0,0.00933085]
[1769554006604,0.00258838,89305.0,89296.0,0.396]
[1769554007304,0.00258838,89305.0,89296.0,0.39796]
[1769554007499,0.01164978,89305.0,89296.0,0.39796]
[1769554007699,0.0090614,89304.0,89296.0,0.39796]
[1769554007904,0.00258838,89303.0,89296.0,0.39796]
[1769554009106,0.0090614,89302.0,89291.0,0.39836]
[1769554009300,0.01380038,89301.0,89291.0,0.39836]
[1769554010203,0.00258838,89301.0,89291.0,0.39836]
[1769554012110,0.00258838,89301.0,89291.0,0.40769085]
[1769554012509,0.00258838,89301.0,89291.0,0.00933085]
[1769554012910,0.011211,89305.0,89292.0,0.00258838]
[1769554013210,0.01207382,89305.0,89293.0,0.00933085]
[1769554013402,0.01207382,89305.0,89295.0,0.00933085]
[1769554013603,0.01207382,89305.0,89296.0,0.00258838]
[1769554014906,0.011211,89303.0,89296.0,0.00258838]
[1769554015112,0.00086282,89302.0,89291.0,0.00914826]
[1769554015416,0.00086282,89302.0,89291.0,0.01173664]
[1769554016814,0.01072955,89302.0,89291.0,0.00914826]
[1769554017414,0.01072955,89302.0,89291.0,0.01173664]
[1769554018016,0.01072955,89302.0,89291.0,0.00258838]
[1769554020719,0.00072955,89302.0,89291.0,0.00258838]
[1769554022013,0.00072955,89302.0,89291.0,0.01173664]
[1769554022420,0.011211,89303.0,89291.0,0.01173664]
[1769554023311,0.011212,89302.0,89291.0,0.01173664]
[1769554024817,0.011212,89302.0,89292.0,0.00914826]
[1769554025019,0.011212,89302.0,89293.0,0.01173664]
[1769554026817,0.011212,89301.0,89293.0,0.00914826]
[1769554027020,0.00986673,89302.0,89290.0,0.34772]
[1769554027219,0.12409627,89300.0,89290.0,0.35030838]
[1769554027416,0.00986673,89299.0,89290.0,0.34772]
[1769554029310,0.011212,89296.0,89290.0,0.34772]
[1769554030922,0.011212,89296.0,89290.0,0.35030838]
[1769554032224,0.011212,89296.0,89290.0,0.00258838]
[1769554034242,0.011212,89298.0,89290.0,0.00258838]
[1769554034833,0.011212,89297.0,89290.0,0.00258838]
[1769554035029,0.011212,89296.0,89288.0,0.16738976]
[1769554035220,0.011213,89294.0,89288.0,0.16738976]
[1769554035423,0.011213,89294.0,89288.0,0.17653802]
[1769554035622,0.011212,89297.0,89288.0,0.17653802]
[1769554035829,0.011212,89297.0,89287.0,0.16738976]
[1769554036028,0.011212,89297.0,89287.0,0.17653802]
[1769554036229,0.011212,89297.0,89288.0,0.00914826]
[1769554036535,0.00986673,89296.0,89288.0,0.00258838]
[1769554036730,0.011212,89297.0,89288.0,0.01173664]
[1769554036927,0.011212,89297.0,89288.0,0.00914826]
[1769554037333,0.011212,89297.0,89287.0,0.16738976]
[1769554038526,0.011212,89297.0,89288.0,0.16738976]
[1769554039334,0.011212,89297.0,89287.0,0.16738976]
[1769554039535,0.011212,89297.0,89288.0,0.16738976]
[1769554039928,0.011212,89297.0,89284.0,0.41893664]
[1769554040630,0.011212,89297.0,89285.0,0.00914826]
[1769554040830,0.011212,89297.0,89285.0,0.01173664]
[1769554042136,0.02107873,89297.0,89285.0,0.01173664]
[1769554042338,0.00986673,89296.0,89285.0,0.00258838]
[1769554042539,0.00986673,89296.0,89285.0,0.01173664]
[1769554042735,0.011212,89297.0,89285.0,0.01173664]
[1769554044830,0.011212,89295.0,89285.0,0.01173664]
[1769554046638,0.011213,89293.0,89285.0,0.01173664]
[1769554046939,0.011213,89293.0,89285.0,0.00914826]
[1769554047542,0.011213,89293.0,89284.0,0.4072]
[1769554047840,0.011213,89291.0,89284.0,0.4072]
[1769554048036,0.011213,89288.0,89284.0,0.4072]
[1769554048243,0.00937246,89297.0,89284.0,0.40978838]
[1769554048643,0.011213,89290.0,89284.0,0.40978838]
[1769554049344,0.00937246,89297.0,89284.0,0.00258838]
[1769554049946,0.00937246,89297.0,89284.0,0.01185012]
[1769554050444,0.011213,89292.0,89285.0,0.00926174]
[1769554051236,0.011213,89291.0,89285.0,0.00926174]
[1769554055651,0.011213,89291.0,89285.0,0.01185012]
[1769554055949,0.011213,89288.0,89285.0,0.01185012]
[1769554056136,0.00011264,89287.0,89285.0,1.2e-07]
[1769554056542,0.00011264,89287.0,89282.0,0.40996]
[1769554056739,0.00011264,89287.0,89282.0,0.41082294]
[1769554057644,0.00937246,89294.0,89282.0,0.41082294]
[1769554057839,0.011213,89289.0,89282.0,0.41082294]
[1769554058246,0.00258826,89293.0,89282.0,0.41082294]
[1769554058547,5.015e-05,89292.0,89282.0,0.41082294]
[1769554058749,0.00258826,89291.0,89282.0,0.41082294]
[1769554058936,0.00258826,89291.0,89282.0,0.42008468]
[1769554059134,5.015e-05,89292.0,89282.0,0.42008468]
[1769554060348,0.011213,89289.0,89282.0,0.42008468]
[1769554060550,0.011213,89287.0,89282.0,0.41922174]
[1769554060752,5.015e-05,89292.0,89282.0,0.42181012]
[1769554060951,0.011213,89287.0,89282.0,0.42181012]
[1769554061656,5.015e-05,89292.0,89282.0,0.01185012]
[1769554061954,0.011213,89288.0,89282.0,0.00926174]
[1769554062155,0.011213,89288.0,89282.0,0.01185012]
[1769554062651,0.08062444,89302.0,89288.0,0.00926174]
[1769554062951,0.08062444,89302.0,89280.0,0.41544]
[1769554062952,0.01121,89314.0,89296.0,0.011212]
[1769554063147,1.5,89327.0,89297.0,0.41822838]
[1769554063348,0.12168174,89326.0,89297.0,0.41822838]
[1769554063547,0.011208,89326.0,89308.0,0.011211]
[1769554063752,0.011207,89337.0,89316.0,0.01121]
[1769554063947,0.1041016,89336.0,89318.0,0.011209]
[1769554064146,0.1041016,89335.0,89319.0,0.00258838]
[1769554064348,1.5,89336.0,89319.0,0.00258838]
[1769554064654,0.01000675,89345.0,89319.0,0.00258838]
[1769554065043,1.5,89344.0,89319.0,0.00258838]
[1769554066453,0.011207,89342.0,89323.0,0.011209]
[1769554066651,0.011207,89342.0,89324.0,0.00258838]
[1769554066960,1.5,89344.0,89325.0,0.011208]
[1769554067149,1.5,89344.0,89326.0,0.00258838]
[1769554068761,0.01000675,89345.0,89326.0,0.00258838]
[1769554069363,1.51000675,89345.0,89326.0,0.00258838]
[1769554069562,0.01062178,89344.0,89326.0,0.00258838]
[1769554069757,0.01062178,89343.0,89326.0,0.00258838]
[1769554070266,0.011206,89342.0,89326.0,0.00258838]
[1769554071455,0.01061991,89341.0,89326.0,0.00258838]
[1769554072064,0.011207,89340.0,89326.0,0.00258838]
[1769554072366,0.02182691,89340.0,89326.0,0.00258838]
[1769554074967,0.01058155,89339.0,89326.0,0.00258838]
[1769554077872,0.011207,89338.0,89326.0,0.00258838]
[1769554078069,0.011206,89345.0,89328.0,0.011208]
[1769554078272,0.10092,89347.0,89331.0,0.011208]
[1769554078567,0.10092,89347.0,89332.0,0.00258838]
[1769554078771,1.5,89346.0,89332.0,0.00258838]
[1769554079166,0.10092,89347.0,89332.0,0.01379638]
[1769554080166,0.10092,89347.0,89332.0,0.00258838]
[1769554081381,0.10092,89347.0,89335.0,0.011207]
[1769554081678,0.0106062,89351.0,89336.0,0.00258838]
[1769554083575,1.5,89360.0,89336.0,0.00258838]
[1769554083881,0.011204,89360.0,89343.0,0.011206]
[1769554084084,0.011204,89363.0,89345.0,0.011206]